[Event "December 19 Late 2023"]
[Site "https://www.chess.com"]
[Date "2023.12.19"]
[Round "9"]
[White "Dyachuk, Artem"]
[Black "petr577"]
[Result "1-0"]
[Board "27"]
[TimeControl "180+1"]
[WhiteFideId "34107924"]
[WhiteElo "2244"]
[BlackElo "2354"]
[WhiteTeam "UKR"]
[WhiteClock "0:00:59"]
[BlackClock "0:00:02"]

1. e4 {[%clk 0:03:00]}  e5 {[%clk 0:02:57]} 2. Nf3 {[%clk 0:03:00]}  Nc6 {[%clk 0:02:57]} 3. Bb5 {[%clk 0:03:00]}  a6 {[%clk 0:02:58]} 4. Ba4 {[%clk 0:03:00]}  Nge7 {[%clk 0:02:58]} 5. O-O {[%clk 0:03:00]}  g6 {[%clk 0:02:59]} 6. c3 {[%clk 0:02:59]}  Bg7 {[%clk 0:02:59]} 7. d4 {[%clk 0:03:00]}  exd4 {[%clk 0:03:00]} 8. cxd4 {[%clk 0:02:59]}  b5 {[%clk 0:03:00]} 9. Bc2 {[%clk 0:02:56]}  d5 {[%clk 0:03:00]} 10. e5 {[%clk 0:02:54]}  h6 {[%clk 0:02:53]} 11. Nbd2 {[%clk 0:02:52]}  O-O {[%clk 0:02:53]} 12. Nb3 {[%clk 0:02:51]}  Kh7 {[%clk 0:02:37]} 13. Bd2 {[%clk 0:02:47]}  f6 {[%clk 0:02:32]} 14. exf6 {[%clk 0:02:46]}  Bxf6 {[%clk 0:02:33]} 15. h3 {[%clk 0:02:42]}  Bg7 {[%clk 0:02:26]} 16. Re1 {[%clk 0:02:41]}  Bf5 {[%clk 0:02:18]} 17. Rc1 {[%clk 0:02:39]}  Qd7 {[%clk 0:02:10]} 18. Nc5 {[%clk 0:02:36]}  Qc8 {[%clk 0:02:06]} 19. Bxf5 {[%clk 0:02:35]}  Qxf5 {[%clk 0:01:49]} 20. Be3 {[%clk 0:02:29]}  a5 {[%clk 0:01:04]} 21. Nd3 {[%clk 0:02:05]}  Rac8 {[%clk 0:00:51]} 22. Rc5 {[%clk 0:02:02]}  b4 {[%clk 0:00:28]} 23. Nde5 {[%clk 0:02:02]}  Nxe5 {[%clk 0:00:26]} 24. dxe5 {[%clk 0:02:03]}  c6 {[%clk 0:00:23]} 25. Rxa5 {[%clk 0:02:00]}  Rfe8 {[%clk 0:00:16]} 26. Ra7 {[%clk 0:01:59]}  c5 {[%clk 0:00:15]} 27. Qa4 {[%clk 0:01:55]}  d4 {[%clk 0:00:15]} 28. Bd2 {[%clk 0:01:55]}  Nd5 {[%clk 0:00:15]} 29. Qa6 {[%clk 0:01:37]}  Nc7 {[%clk 0:00:14]} 30. Qc6 {[%clk 0:01:32]}  Ne6 {[%clk 0:00:13]} 31. Qd5 {[%clk 0:01:21]}  Rcd8 {[%clk 0:00:13]} 32. Qc4 {[%clk 0:01:22]}  Rc8 {[%clk 0:00:13]} 33. a4 {[%clk 0:01:21]}  g5 {[%clk 0:00:12]} 34. a5 {[%clk 0:01:20]}  g4 {[%clk 0:00:12]} 35. hxg4 {[%clk 0:01:20]}  Qxg4 {[%clk 0:00:13]} 36. a6 {[%clk 0:01:17]}  Rg8 {[%clk 0:00:13]} 37. Re7 {[%clk 0:01:12]}  Rc6 {[%clk 0:00:11]} 38. a7 {[%clk 0:01:07]}  Kh8 {[%clk 0:00:10]} 39. Qd3 {[%clk 0:01:06]}  Nf4 {[%clk 0:00:07]} 40. Bxf4 {[%clk 0:01:05]}  Qxf4 {[%clk 0:00:08]} 41. Re4 {[%clk 0:01:02]}  Qc1+ {[%clk 0:00:07]} 42. Re1 {[%clk 0:01:03]}  Qf4 {[%clk 0:00:07]} 43. Qc4 {[%clk 0:01:00]}  Qg4 {[%clk 0:00:06]} 44. Qxg8+ {[%clk 0:00:59]}  Kxg8 {[%clk 0:00:07]} 45. a8=Q+ {[%clk 0:00:59]}  Bf8 {[%clk 0:00:07]} 46. Qxc6 {[%clk 0:00:59]}  Bxe7 {[%clk 0:00:07]} 47. Qe4 {[%clk 0:01:00]}  Qg7 {[%clk 0:00:07]} 48. Qd5+ {[%clk 0:00:59]}  Kh7 {[%clk 0:00:07]} 49. e6 {[%clk 0:00:59]}  d3 {[%clk 0:00:02]} 50. Qxd3+ {[%clk 0:00:59]} 1-0

[Event "December 19 Late 2023"]
[Site "https://www.chess.com"]
[Date "2023.12.19"]
[Round "9"]
[White "Sabuk, Piotr"]
[Black "Pakleza, Zbigniew"]
[Result "0-1"]
[Board "31"]
[TimeControl "180+1"]
[WhiteFideId "1137565"]
[BlackFideId "1119290"]
[WhiteElo "2276"]
[BlackElo "2410"]
[WhiteTeam "POL"]
[BlackTeam "POL"]
[WhiteClock "0:00:13"]
[BlackClock "0:01:09"]

1. d4 {[%clk 0:03:00]}  d5 {[%clk 0:02:57]} 2. c4 {[%clk 0:03:01]}  c6 {[%clk 0:02:57]} 3. Nf3 {[%clk 0:03:01]}  Nf6 {[%clk 0:02:58]} 4. Nc3 {[%clk 0:03:01]}  Qb6 {[%clk 0:02:58]} 5. g3 {[%clk 0:02:53]}  Bf5 {[%clk 0:02:58]} 6. Qb3 {[%clk 0:02:45]}  e6 {[%clk 0:02:56]} 7. c5 {[%clk 0:02:36]}  Qc7 {[%clk 0:02:56]} 8. Bf4 {[%clk 0:02:34]}  Qc8 {[%clk 0:02:57]} 9. Bg2 {[%clk 0:02:27]}  h6 {[%clk 0:02:57]} 10. O-O {[%clk 0:02:24]}  Nbd7 {[%clk 0:02:57]} 11. Rac1 {[%clk 0:02:18]}  Be7 {[%clk 0:02:55]} 12. Bd6 {[%clk 0:02:13]}  Bxd6 {[%clk 0:02:50]} 13. cxd6 {[%clk 0:02:14]}  Qb8 {[%clk 0:02:50]} 14. Qa3 {[%clk 0:02:11]}  O-O {[%clk 0:02:46]} 15. Ne5 {[%clk 0:02:08]}  Rd8 {[%clk 0:02:45]} 16. f3 {[%clk 0:01:57]}  Bh7 {[%clk 0:02:44]} 17. e4 {[%clk 0:01:56]}  Nb6 {[%clk 0:02:06]} 18. b3 {[%clk 0:01:05]}  dxe4 {[%clk 0:01:49]} 19. Nxe4 {[%clk 0:00:57]}  Bxe4 {[%clk 0:01:37]} 20. fxe4 {[%clk 0:00:57]}  Qxd6 {[%clk 0:01:37]} 21. Qxd6 {[%clk 0:00:54]}  Rxd6 {[%clk 0:01:38]} 22. Nc4 {[%clk 0:00:33]}  Rxd4 {[%clk 0:01:32]} 23. e5 {[%clk 0:00:33]}  Nxc4 {[%clk 0:01:25]} 24. bxc4 {[%clk 0:00:25]}  Nd7 {[%clk 0:01:18]} 25. Rfd1 {[%clk 0:00:23]}  Rxd1+ {[%clk 0:01:16]} 26. Rxd1 {[%clk 0:00:23]}  Nxe5 {[%clk 0:01:17]} 27. c5 {[%clk 0:00:23]}  Kf8 {[%clk 0:01:15]} 28. Rb1 {[%clk 0:00:21]}  Rb8 {[%clk 0:01:14]} 29. Rb3 {[%clk 0:00:21]}  Nd7 {[%clk 0:01:09]} 30. Bxc6 {[%clk 0:00:13]}  bxc6 {[%clk 0:01:09]} 0-1

[Event "December 19 Late 2023"]
[Site "https://www.chess.com"]
[Date "2023.12.19"]
[Round "9"]
[White "Sun, Rick"]
[Black "Domingo Nunez, Alejandro"]
[Result "1-0"]
[Board "33"]
[TimeControl "180+1"]
[WhiteFideId "30909481"]
[BlackFideId "22245561"]
[WhiteElo "2169"]
[BlackElo "2252"]
[WhiteTeam "USA"]
[BlackTeam "ESP"]
[WhiteClock "0:00:48"]
[BlackClock "0:00:10"]

1. d4 {[%clk 0:03:00]}  Nf6 {[%clk 0:02:55]} 2. Nc3 {[%clk 0:03:01]}  d5 {[%clk 0:02:54]} 3. Bf4 {[%clk 0:03:01]}  c5 {[%clk 0:02:53]} 4. e3 {[%clk 0:03:02]}  e6 {[%clk 0:02:52]} 5. Nf3 {[%clk 0:03:02]}  Be7 {[%clk 0:02:50]} 6. dxc5 {[%clk 0:03:01]}  Bxc5 {[%clk 0:02:49]} 7. Bd3 {[%clk 0:03:01]}  Nc6 {[%clk 0:02:36]} 8. O-O {[%clk 0:03:01]}  O-O {[%clk 0:02:36]} 9. e4 {[%clk 0:03:01]}  dxe4 {[%clk 0:02:36]} 10. Nxe4 {[%clk 0:03:02]}  Nxe4 {[%clk 0:02:36]} 11. Bxe4 {[%clk 0:03:03]}  Qf6 {[%clk 0:02:07]} 12. Qc1 {[%clk 0:02:18]}  e5 {[%clk 0:01:54]} 13. Bg5 {[%clk 0:02:14]}  Qe6 {[%clk 0:01:51]} 14. Rd1 {[%clk 0:02:11]}  Nd4 {[%clk 0:01:30]} 15. Nxd4 {[%clk 0:01:55]}  exd4 {[%clk 0:01:29]} 16. Re1 {[%clk 0:01:47]}  Qb6 {[%clk 0:01:25]} 17. Bd3 {[%clk 0:01:41]}  Be6 {[%clk 0:01:22]} 18. Qf4 {[%clk 0:01:35]}  Rfe8 {[%clk 0:00:34]} 19. Qh4 {[%clk 0:01:22]}  g6 {[%clk 0:00:17]} 20. Bf6 {[%clk 0:01:05]}  Bd5 {[%clk 0:00:18]} 21. Re5 {[%clk 0:00:52]}  Qxb2 {[%clk 0:00:13]} 22. Qxh7+ {[%clk 0:00:48]}  Kxh7 {[%clk 0:00:10]} 23. Rh5+ {[%clk 0:00:47]}  Kg8 {[%clk 0:00:10]} 24. Rh8# {[%clk 0:00:48]} 1-0

[Event "December 19 Late 2023"]
[Site "https://www.chess.com"]
[Date "2023.12.19"]
[Round "9"]
[White "Zhu, Jiner"]
[Black "O`Gorman, Tom"]
[Result "1-0"]
[Board "35"]
[TimeControl "180+1"]
[WhiteFideId "8608059"]
[BlackFideId "2508249"]
[WhiteElo "2384"]
[BlackElo "2288"]
[WhiteTeam "CHN"]
[BlackTeam "IRL"]
[WhiteClock "0:00:11"]
[BlackClock "0:00:13"]

1. Nf3 {[%clk 0:03:00]}  g6 {[%clk 0:02:59]} 2. c4 {[%clk 0:02:57]}  Bg7 {[%clk 0:03:00]} 3. d4 {[%clk 0:02:58]}  Nf6 {[%clk 0:02:59]} 4. Nc3 {[%clk 0:02:58]}  d6 {[%clk 0:02:59]} 5. e3 {[%clk 0:02:58]}  O-O {[%clk 0:03:00]} 6. Be2 {[%clk 0:02:59]}  Nbd7 {[%clk 0:03:00]} 7. O-O {[%clk 0:02:59]}  e5 {[%clk 0:03:01]} 8. b4 {[%clk 0:02:57]}  Re8 {[%clk 0:03:00]} 9. Bb2 {[%clk 0:02:57]}  e4 {[%clk 0:03:01]} 10. Nd2 {[%clk 0:02:57]}  Nf8 {[%clk 0:03:01]} 11. Qc2 {[%clk 0:02:57]}  Qe7 {[%clk 0:02:56]} 12. Rfe1 {[%clk 0:02:54]}  h5 {[%clk 0:02:56]} 13. c5 {[%clk 0:02:54]}  d5 {[%clk 0:02:52]} 14. b5 {[%clk 0:02:50]}  h4 {[%clk 0:02:52]} 15. h3 {[%clk 0:02:48]}  g5 {[%clk 0:02:52]} 16. f3 {[%clk 0:02:37]}  Ng6 {[%clk 0:02:42]} 17. fxe4 {[%clk 0:02:04]}  dxe4 {[%clk 0:02:42]} 18. Rf1 {[%clk 0:02:05]}  g4 {[%clk 0:02:11]} 19. hxg4 {[%clk 0:02:04]}  Bh6 {[%clk 0:02:11]} 20. Nc4 {[%clk 0:01:55]}  Nxg4 {[%clk 0:02:10]} 21. Bxg4 {[%clk 0:01:48]}  Bxg4 {[%clk 0:02:09]} 22. Nd5 {[%clk 0:01:48]}  Qg5 {[%clk 0:02:00]} 23. Nf6+ {[%clk 0:01:47]}  Kh8 {[%clk 0:01:55]} 24. d5 {[%clk 0:01:45]}  Bg7 {[%clk 0:01:54]} 25. Nxe8 {[%clk 0:01:42]}  Rxe8 {[%clk 0:01:54]} 26. Rxf7 {[%clk 0:01:42]}  Bxb2 {[%clk 0:01:28]} 27. Qxb2+ {[%clk 0:01:40]}  Ne5 {[%clk 0:01:29]} 28. d6 {[%clk 0:00:51]}  Kg8 {[%clk 0:01:15]} 29. Re7 {[%clk 0:00:39]}  Nxc4 {[%clk 0:00:51]} 30. Rxe8+ {[%clk 0:00:39]}  Kf7 {[%clk 0:00:51]} 31. Re7+ {[%clk 0:00:29]}  Qxe7 {[%clk 0:00:51]} 32. Rf1+ {[%clk 0:00:28]}  Bf3 {[%clk 0:00:48]} 33. dxe7 {[%clk 0:00:24]}  Nxb2 {[%clk 0:00:47]} 34. gxf3 {[%clk 0:00:24]}  Kxe7 {[%clk 0:00:43]} 35. fxe4 {[%clk 0:00:24]}  Nd3 {[%clk 0:00:42]} 36. Rf5 {[%clk 0:00:24]}  Nb4 {[%clk 0:00:37]} 37. Rh5 {[%clk 0:00:21]}  Nxa2 {[%clk 0:00:35]} 38. Rxh4 {[%clk 0:00:18]}  Nc3 {[%clk 0:00:35]} 39. Kf2 {[%clk 0:00:15]}  Nxb5 {[%clk 0:00:34]} 40. Kf3 {[%clk 0:00:14]}  a5 {[%clk 0:00:31]} 41. e5 {[%clk 0:00:14]}  Ke6 {[%clk 0:00:30]} 42. Ke4 {[%clk 0:00:13]}  Nc3+ {[%clk 0:00:29]} 43. Kd4 {[%clk 0:00:13]}  Nb5+ {[%clk 0:00:28]} 44. Kc4 {[%clk 0:00:13]}  c6 {[%clk 0:00:28]} 45. Rh7 {[%clk 0:00:12]}  a4 {[%clk 0:00:26]} 46. Rxb7 {[%clk 0:00:12]}  a3 {[%clk 0:00:26]} 47. Rb8 {[%clk 0:00:11]}  Kxe5 {[%clk 0:00:25]} 48. Ra8 {[%clk 0:00:11]}  Ke4 {[%clk 0:00:25]} 49. Ra6 {[%clk 0:00:11]}  Kxe3 {[%clk 0:00:16]} 50. Rxc6 {[%clk 0:00:12]}  Nd4 {[%clk 0:00:16]} 51. Ra6 {[%clk 0:00:12]}  Nc2 {[%clk 0:00:16]} 52. Kc3 {[%clk 0:00:11]}  Nd4 {[%clk 0:00:14]} 53. Kc4 {[%clk 0:00:10]}  Nc2 {[%clk 0:00:14]} 54. c6 {[%clk 0:00:10]}  Kd2 {[%clk 0:00:14]} 55. c7 {[%clk 0:00:10]}  Kc1 {[%clk 0:00:14]} 56. c8=Q {[%clk 0:00:11]}  Kb2 {[%clk 0:00:13]} 57. Qb7+ {[%clk 0:00:11]} 1-0

[Event "December 19 Late 2023"]
[Site "https://www.chess.com"]
[Date "2023.12.19"]
[Round "9"]
[White "Sturt, Raven"]
[Black "Rama, Tejas"]
[Result "1-0"]
[Board "40"]
[TimeControl "180+1"]
[WhiteFideId "2007304"]
[BlackFideId "30907381"]
[WhiteElo "2408"]
[BlackElo "2089"]
[WhiteTeam "USA"]
[BlackTeam "USA"]
[WhiteClock "0:00:54"]
[BlackClock "0:00:00"]

1. f4 {[%clk 0:03:00]}  Nf6 {[%clk 0:02:56]} 2. Nf3 {[%clk 0:03:00]}  d5 {[%clk 0:02:57]} 3. e3 {[%clk 0:03:00]}  c5 {[%clk 0:02:57]} 4. b3 {[%clk 0:03:00]}  g6 {[%clk 0:02:57]} 5. Bb2 {[%clk 0:02:59]}  Bg7 {[%clk 0:02:58]} 6. Be2 {[%clk 0:02:58]}  O-O {[%clk 0:02:58]} 7. O-O {[%clk 0:02:58]}  Nc6 {[%clk 0:02:58]} 8. Na3 {[%clk 0:02:58]}  Ne4 {[%clk 0:02:47]} 9. Qc1 {[%clk 0:02:56]}  Qc7 {[%clk 0:02:32]} 10. Bxg7 {[%clk 0:02:55]}  Kxg7 {[%clk 0:02:33]} 11. Qb2+ {[%clk 0:02:55]}  Kg8 {[%clk 0:02:33]} 12. d3 {[%clk 0:02:46]}  Nf6 {[%clk 0:02:17]} 13. Rae1 {[%clk 0:02:43]}  Bg4 {[%clk 0:02:04]} 14. h3 {[%clk 0:02:39]}  Bxf3 {[%clk 0:02:02]} 15. Bxf3 {[%clk 0:02:40]}  Rad8 {[%clk 0:01:58]} 16. c4 {[%clk 0:02:22]}  Rd7 {[%clk 0:01:21]} 17. Nb5 {[%clk 0:02:16]}  Qb8 {[%clk 0:01:13]} 18. Nc3 {[%clk 0:01:52]}  d4 {[%clk 0:00:51]} 19. Na4 {[%clk 0:01:51]}  Qd6 {[%clk 0:00:40]} 20. Bxc6 {[%clk 0:01:37]}  Qxc6 {[%clk 0:00:38]} 21. exd4 {[%clk 0:01:37]}  Rxd4 {[%clk 0:00:32]} 22. Rxe7 {[%clk 0:01:35]}  Rxd3 {[%clk 0:00:29]} 23. f5 {[%clk 0:01:26]}  Ne4 {[%clk 0:00:23]} 24. Qe2 {[%clk 0:01:20]}  Qd6 {[%clk 0:00:04]} 25. Qxe4 {[%clk 0:01:16]}  Rd2 {[%clk 0:00:03]} 26. Nc3 {[%clk 0:01:08]}  Qg3 {[%clk 0:00:02]} 27. Ne2 {[%clk 0:01:08]}  Qg5 {[%clk 0:00:00]} 28. Qe3 {[%clk 0:00:54]} 1-0

[Event "December 19 Late 2023"]
[Site "https://www.chess.com"]
[Date "2023.12.19"]
[Round "9"]
[White "Kazmaier, Daniel"]
[Black "Melian, Juan Sebastian"]
[Result "0-1"]
[Board "42"]
[TimeControl "180+1"]
[WhiteFideId "2606089"]
[BlackFideId "3706575"]
[WhiteElo "2492"]
[BlackElo "2098"]
[WhiteTeam "CAN"]
[BlackTeam "PAR"]
[WhiteClock "0:00:06"]
[BlackClock "0:00:47"]

1. d4 {[%clk 0:02:57]}  Nf6 {[%clk 0:02:57]} 2. Bg5 {[%clk 0:02:57]}  d5 {[%clk 0:02:57]} 3. Bxf6 {[%clk 0:02:56]}  gxf6 {[%clk 0:02:58]} 4. c4 {[%clk 0:02:57]}  dxc4 {[%clk 0:02:55]} 5. Nc3 {[%clk 0:02:56]}  e6 {[%clk 0:02:46]} 6. e3 {[%clk 0:02:55]}  a6 {[%clk 0:02:34]} 7. Qf3 {[%clk 0:02:45]}  Nd7 {[%clk 0:02:32]} 8. Bxc4 {[%clk 0:02:45]}  Rb8 {[%clk 0:02:17]} 9. Nge2 {[%clk 0:02:27]}  b5 {[%clk 0:02:15]} 10. Bd3 {[%clk 0:02:26]}  Bb7 {[%clk 0:02:14]} 11. Be4 {[%clk 0:02:26]}  Bxe4 {[%clk 0:02:11]} 12. Nxe4 {[%clk 0:02:26]}  f5 {[%clk 0:02:06]} 13. Nc5 {[%clk 0:02:16]}  Bxc5 {[%clk 0:01:31]} 14. dxc5 {[%clk 0:02:15]}  Qf6 {[%clk 0:01:32]} 15. Qc6 {[%clk 0:01:29]}  e5 {[%clk 0:01:30]} 16. Qxf6 {[%clk 0:01:23]}  Nxf6 {[%clk 0:01:31]} 17. f3 {[%clk 0:01:21]}  Ke7 {[%clk 0:01:29]} 18. Ng3 {[%clk 0:01:08]}  Ke6 {[%clk 0:01:29]} 19. e4 {[%clk 0:01:03]}  fxe4 {[%clk 0:01:30]} 20. fxe4 {[%clk 0:01:03]}  Rbd8 {[%clk 0:01:27]} 21. Ke2 {[%clk 0:00:58]}  Rd4 {[%clk 0:01:22]} 22. Rad1 {[%clk 0:00:41]}  Rhd8 {[%clk 0:01:16]} 23. Rxd4 {[%clk 0:00:34]}  Rxd4 {[%clk 0:01:17]} 24. Rf1 {[%clk 0:00:21]}  Nxe4 {[%clk 0:01:00]} 25. Nf5 {[%clk 0:00:18]}  Rc4 {[%clk 0:00:56]} 26. b3 {[%clk 0:00:14]}  Rxc5 {[%clk 0:00:53]} 27. Kd3 {[%clk 0:00:12]}  Nd6 {[%clk 0:00:53]} 28. Ng7+ {[%clk 0:00:09]}  Ke7 {[%clk 0:00:52]} 29. a3 {[%clk 0:00:05]}  a5 {[%clk 0:00:45]} 30. b4 {[%clk 0:00:05]}  axb4 {[%clk 0:00:46]} 31. axb4 {[%clk 0:00:05]}  Rd5+ {[%clk 0:00:46]} 32. Ke3 {[%clk 0:00:05]}  Rd4 {[%clk 0:00:46]} 33. Nf5+ {[%clk 0:00:04]}  Nxf5+ {[%clk 0:00:47]} 34. Rxf5 {[%clk 0:00:05]}  Ke6 {[%clk 0:00:46]} 35. Rh5 {[%clk 0:00:06]}  Rxb4 {[%clk 0:00:47]} 36. Rxh7 {[%clk 0:00:06]}  Rb3+ {[%clk 0:00:47]} 37. Ke4 {[%clk 0:00:06]}  f5# {[%clk 0:00:47]} 0-1

[Event "December 19 Late 2023"]
[Site "https://www.chess.com"]
[Date "2023.12.19"]
[Round "9"]
[White "Polster, Christian"]
[Black "Omelja, Artem"]
[Result "0-1"]
[Board "45"]
[TimeControl "180+1"]
[WhiteFideId "12965081"]
[BlackFideId "14119846"]
[WhiteElo "2141"]
[BlackElo "2404"]
[WhiteTeam "GER"]
[BlackTeam "UKR"]
[WhiteClock "0:00:00"]
[BlackClock "0:01:24"]

1. Na3 {[%clk 0:03:00]}  e5 {[%clk 0:02:57]} 2. Nc4 {[%clk 0:02:56]}  e4 {[%clk 0:02:57]} 3. d4 {[%clk 0:02:42]}  d5 {[%clk 0:02:56]} 4. Ne3 {[%clk 0:02:42]}  c6 {[%clk 0:02:52]} 5. c4 {[%clk 0:02:25]}  f5 {[%clk 0:02:51]} 6. g3 {[%clk 0:02:23]}  Nf6 {[%clk 0:02:49]} 7. h4 {[%clk 0:02:22]}  Bb4+ {[%clk 0:02:47]} 8. Bd2 {[%clk 0:02:22]}  Bd6 {[%clk 0:02:46]} 9. Nh3 {[%clk 0:02:20]}  O-O {[%clk 0:02:46]} 10. Nf4 {[%clk 0:02:04]}  dxc4 {[%clk 0:02:41]} 11. Nxc4 {[%clk 0:02:02]}  Bc7 {[%clk 0:02:41]} 12. Bb4 {[%clk 0:01:45]}  Re8 {[%clk 0:02:40]} 13. e3 {[%clk 0:01:38]}  Nd5 {[%clk 0:02:40]} 14. Nxd5 {[%clk 0:01:29]}  cxd5 {[%clk 0:02:41]} 15. Ne5 {[%clk 0:01:29]}  Nc6 {[%clk 0:02:34]} 16. Nxc6 {[%clk 0:01:28]}  bxc6 {[%clk 0:02:35]} 17. Qd2 {[%clk 0:01:25]}  Rb8 {[%clk 0:02:34]} 18. Bc5 {[%clk 0:01:16]}  a5 {[%clk 0:02:17]} 19. b3 {[%clk 0:01:11]}  Be6 {[%clk 0:02:08]} 20. Be2 {[%clk 0:01:07]}  Qf6 {[%clk 0:02:05]} 21. Rc1 {[%clk 0:00:59]}  g6 {[%clk 0:01:53]} 22. Kd1 {[%clk 0:00:51]}  h6 {[%clk 0:01:52]} 23. Kc2 {[%clk 0:00:50]}  g5 {[%clk 0:01:50]} 24. hxg5 {[%clk 0:00:45]}  hxg5 {[%clk 0:01:51]} 25. Rh5 {[%clk 0:00:38]}  Bf7 {[%clk 0:01:48]} 26. Rh3 {[%clk 0:00:37]}  Bg6 {[%clk 0:01:45]} 27. Rch1 {[%clk 0:00:34]}  f4 {[%clk 0:01:44]} 28. gxf4 {[%clk 0:00:33]}  gxf4 {[%clk 0:01:45]} 29. Bh5 {[%clk 0:00:30]}  Re6 {[%clk 0:01:37]} 30. Bxg6 {[%clk 0:00:24]}  Qxg6 {[%clk 0:01:38]} 31. exf4 {[%clk 0:00:20]}  e3+ {[%clk 0:01:32]} 32. Qd3 {[%clk 0:00:18]}  Qxd3+ {[%clk 0:01:32]} 33. Kxd3 {[%clk 0:00:19]}  exf2 {[%clk 0:01:33]} 34. Rg3+ {[%clk 0:00:10]}  Kf7 {[%clk 0:01:30]} 35. Rh7+ {[%clk 0:00:10]}  Kf6 {[%clk 0:01:26]} 36. Rh6+ {[%clk 0:00:09]}  Kf5 {[%clk 0:01:24]} 37. Rxe6 {[%clk 0:00:07]}  f1=Q+ {[%clk 0:01:25]} 38. Re2 {[%clk 0:00:05]}  Re8 {[%clk 0:01:24]} 39. Re3 {[%clk 0:00:03]}  Rxe3+ {[%clk 0:01:23]} 40. Kxe3 {[%clk 0:00:04]}  Bxf4+ {[%clk 0:01:23]} 41. Kd3 {[%clk 0:00:00]}  Qd1+ {[%clk 0:01:24]} 0-1

[Event "December 19 Late 2023"]
[Site "https://www.chess.com"]
[Date "2023.12.19"]
[Round "9"]
[White "Rojas Alarcon, Julian Antonio"]
[Black "Paragua, Megan Althea"]
[Result "0-1"]
[Board "46"]
[TimeControl "180+1"]
[WhiteFideId "5107407"]
[BlackFideId "30973007"]
[WhiteElo "2340"]
[BlackElo "1961"]
[WhiteTeam "MEX"]
[BlackTeam "USA"]
[WhiteClock "0:00:00"]
[BlackClock "0:00:03"]

1. c4 {[%clk 0:03:00]}  Nf6 {[%clk 0:02:58]} 2. g3 {[%clk 0:03:00]}  e6 {[%clk 0:02:55]} 3. Bg2 {[%clk 0:03:00]}  d5 {[%clk 0:02:50]} 4. Nf3 {[%clk 0:03:01]}  Be7 {[%clk 0:02:48]} 5. O-O {[%clk 0:03:00]}  O-O {[%clk 0:02:48]} 6. b3 {[%clk 0:02:59]}  b6 {[%clk 0:02:47]} 7. Bb2 {[%clk 0:02:57]}  Bb7 {[%clk 0:02:46]} 8. e3 {[%clk 0:02:56]}  Nbd7 {[%clk 0:02:44]} 9. Nc3 {[%clk 0:02:55]}  c5 {[%clk 0:02:42]} 10. cxd5 {[%clk 0:02:50]}  exd5 {[%clk 0:02:41]} 11. d4 {[%clk 0:02:50]}  Ne4 {[%clk 0:02:30]} 12. Ne2 {[%clk 0:02:43]}  Bf6 {[%clk 0:02:25]} 13. Rc1 {[%clk 0:02:42]}  Ba6 {[%clk 0:02:21]} 14. Re1 {[%clk 0:02:41]}  Rc8 {[%clk 0:02:19]} 15. Nf4 {[%clk 0:02:40]}  Bb7 {[%clk 0:02:05]} 16. Rc2 {[%clk 0:02:29]}  c4 {[%clk 0:01:59]} 17. bxc4 {[%clk 0:02:24]}  dxc4 {[%clk 0:01:58]} 18. a4 {[%clk 0:02:23]}  a6 {[%clk 0:01:53]} 19. Qb1 {[%clk 0:02:20]}  c3 {[%clk 0:01:31]} 20. Ba3 {[%clk 0:02:17]}  Re8 {[%clk 0:01:25]} 21. Rec1 {[%clk 0:02:15]}  Bc6 {[%clk 0:01:24]} 22. Qb3 {[%clk 0:02:09]}  Nf8 {[%clk 0:01:11]} 23. Bb4 {[%clk 0:01:37]}  Qd7 {[%clk 0:01:06]} 24. Ra1 {[%clk 0:01:24]}  g5 {[%clk 0:00:43]} 25. Ne2 {[%clk 0:01:19]}  Bd5 {[%clk 0:00:40]} 26. Qb1 {[%clk 0:01:18]}  Qb7 {[%clk 0:00:30]} 27. Bh3 {[%clk 0:00:59]}  Rc7 {[%clk 0:00:26]} 28. Ne5 {[%clk 0:00:55]}  Bxe5 {[%clk 0:00:24]} 29. dxe5 {[%clk 0:00:56]}  Nd2 {[%clk 0:00:24]} 30. Rxd2 {[%clk 0:00:55]}  cxd2 {[%clk 0:00:22]} 31. Bxd2 {[%clk 0:00:55]}  Be4 {[%clk 0:00:21]} 32. Qb2 {[%clk 0:00:40]}  Rc2 {[%clk 0:00:21]} 33. Qd4 {[%clk 0:00:38]}  Qd5 {[%clk 0:00:21]} 34. Nc3 {[%clk 0:00:31]}  Qxd4 {[%clk 0:00:19]} 35. exd4 {[%clk 0:00:32]}  Bf3 {[%clk 0:00:17]} 36. Be1 {[%clk 0:00:20]}  Rd8 {[%clk 0:00:17]} 37. Bf5 {[%clk 0:00:19]}  Rb2 {[%clk 0:00:17]} 38. d5 {[%clk 0:00:17]}  Bxd5 {[%clk 0:00:16]} 39. Nxd5 {[%clk 0:00:18]}  Rxd5 {[%clk 0:00:15]} 40. Bc3 {[%clk 0:00:19]}  Rb3 {[%clk 0:00:14]} 41. Be1 {[%clk 0:00:15]}  Rxe5 {[%clk 0:00:14]} 42. Bc8 {[%clk 0:00:16]}  b5 {[%clk 0:00:14]} 43. Bxa6 {[%clk 0:00:15]}  bxa4 {[%clk 0:00:13]} 44. Kg2 {[%clk 0:00:15]}  a3 {[%clk 0:00:13]} 45. Bc4 {[%clk 0:00:16]}  Rb2 {[%clk 0:00:11]} 46. Bc3 {[%clk 0:00:15]}  Rc5 {[%clk 0:00:09]} 47. Rxa3 {[%clk 0:00:09]}  Rc2 {[%clk 0:00:10]} 48. Bb4 {[%clk 0:00:09]}  R5xc4 {[%clk 0:00:09]} 49. Be7 {[%clk 0:00:09]}  Rc8 {[%clk 0:00:09]} 50. Bxg5 {[%clk 0:00:09]}  Ng6 {[%clk 0:00:10]} 51. h4 {[%clk 0:00:09]}  R2c5 {[%clk 0:00:09]} 52. Be3 {[%clk 0:00:09]}  Rf5 {[%clk 0:00:08]} 53. Kh3 {[%clk 0:00:08]}  Rd5 {[%clk 0:00:08]} 54. g4 {[%clk 0:00:07]}  h5 {[%clk 0:00:08]} 55. Kg3 {[%clk 0:00:06]}  hxg4 {[%clk 0:00:08]} 56. Kxg4 {[%clk 0:00:07]}  Rc4+ {[%clk 0:00:08]} 57. Kg3 {[%clk 0:00:07]}  Nxh4 {[%clk 0:00:07]} 58. Ra8+ {[%clk 0:00:08]}  Kg7 {[%clk 0:00:07]} 59. Bb6 {[%clk 0:00:06]}  Nf5+ {[%clk 0:00:07]} 60. Kf3 {[%clk 0:00:06]}  Nh6 {[%clk 0:00:06]} 61. Be3 {[%clk 0:00:05]}  Rf5+ {[%clk 0:00:06]} 62. Ke2 {[%clk 0:00:05]}  Ng4 {[%clk 0:00:06]} 63. Kd3 {[%clk 0:00:05]}  Rc6 {[%clk 0:00:05]} 64. Bd4+ {[%clk 0:00:05]}  f6 {[%clk 0:00:04]} 65. Ke4 {[%clk 0:00:05]}  Rg5 {[%clk 0:00:03]} 66. f4 {[%clk 0:00:05]}  Rg6 {[%clk 0:00:03]} 67. Ra7+ {[%clk 0:00:04]}  Kh6 {[%clk 0:00:04]} 68. Kf5 {[%clk 0:00:00]}  Rd6 {[%clk 0:00:03]} 0-1